fUSD/lending_fUSD_20250214
["ID","MTS","AMOUNT","RATE_DAILY","PERIOD"]
[353088017,1739548237991,-603.46184055,0.00010086,2]
[353088018,1739548238002,-90064.20557822,0.00010086,2]
[353088019,1739548238011,-466.68,0.00010137,2]
[353088020,1739548238021,-627.03288306,0.00010447,2]
[353088021,1739548238033,-499.99,0.00010547,2]
[353088022,1739548238044,-44120.21,0.00010547,2]
[353088023,1739548238054,-7021.95,0.00010547,2]
[353088024,1739548238064,-8632.03,0.00010547,2]
[353088025,1739548238077,-9999.99,0.00010547,2]
[353088026,1739548238088,-9999.99,0.00010547,2]
[353088027,1739548238098,-150.99,0.00010547,2]
[353088028,1739548238108,-3491.95,0.00010547,2]
[353088029,1739548238118,-6610.47,0.00010547,2]
[353088030,1739548238129,-9999.99,0.00010547,2]
[353088031,1739548238139,-999.99,0.00010547,2]
[353088032,1739548238148,-150.99,0.00010547,2]
[353088033,1739548238159,-299.99,0.00010547,2]
[353088034,1739548238169,-150.0,0.00010658,2]
[353088035,1739548238180,-180.22863075,0.00010684,2]
[353088036,1739548238190,-1000.0,0.00010985,2]
[353088037,1739548238201,-1843.1791473,0.00011099,2]
[353088038,1739548238211,-1843.17914721,0.00011099,2]
[353088039,1739548238220,-1843.17914721,0.00011099,2]
[353088040,1739548238230,-169.53,0.00011292,2]
[353088042,1739548238245,-943.42,0.00011399,2]
[353088043,1739548238255,-200.0,0.00011413,2]
[353088045,1739548238264,-13392.1495391,0.00011445,2]
[353088048,1739548238275,-559.47,0.0001151,2]
[353088049,1739548238287,-422.98,0.00011561,2]
[353088052,1739548238297,-23900.0,0.00011648,2]
[353088054,1739548238307,-168.1,0.00011658,2]
[353088055,1739548238317,-3019.33493097,0.00011733,2]
[353088058,1739548238328,-500.0,0.00011833,2]
[353088060,1739548238339,-6570.70321069,0.00011844,2]
[353088062,1739548238349,-250.0,0.00011856,2]
[353088064,1739548238359,-1755.85,0.000119,2]
[353088066,1739548238369,-2000.0,0.00011917,2]
[353088068,1739548238379,-181.12,0.00011946,2]
[353088070,1739548238389,-250.0,0.00012017,2]
[353088072,1739548238398,-3019.33493094,0.00012059,2]
[353088074,1739548238408,-6570.70321069,0.00012099,2]
[353088076,1739548238418,-6381.26539836,0.00012287,2]
[353088077,1739548238428,-1000.0,0.00012358,2]
[353088080,1739548238438,-3019.33493094,0.00012385,2]
[353088081,1739548238448,-3019.33493094,0.00012711,2]
[353088084,1739548238458,-559.47,0.00012949,2]
[353088085,1739548238468,-550.0,0.00013,2]
[353088087,1739548238478,-3019.33493094,0.00013037,2]
[353088090,1739548238488,-1500.0,0.0001313,2]
[353088092,1739548238499,-1013.63465895,0.00013325,2]
[353088094,1739548238509,-271.35,0.00013334,2]
[353088096,1739548238519,-3019.33493094,0.00013363,2]
[353088098,1739548238529,-211.06,0.00013561,2]
[353088100,1739548238539,-168.1,0.00013583,2]
[353088102,1739548238550,-327.2631549,0.00013598,2]
[353088104,1739548238560,-300.0,0.000136,4]
[353088106,1739548238570,-24676.13000315,0.00013677,2]
[353088108,1739548238579,-3019.33493094,0.00013689,2]
[353088110,1739548238589,-514.644474,0.00013698,2]
[353088112,1739548238599,-500.0,0.00013698,2]
[353088114,1739548238609,-735.533849,0.00013698,2]
[353088116,1739548238619,-500.0,0.00013698,2]
[353088118,1739548238628,-500.0,0.00013698,2]
[353088120,1739548238638,-500.0,0.00013698,2]
[353088122,1739548238648,-500.0,0.00013698,2]
[353088124,1739548238658,-500.0,0.00013698,2]
[353088126,1739548238668,-500.0,0.00013698,2]
[353088128,1739548238679,-500.0,0.00013698,2]
[353088130,1739548238690,-500.0,0.00013698,2]
[353088132,1739548238700,-500.0,0.00013698,2]
[353088134,1739548238710,-500.0,0.00013698,2]
[353088136,1739548238721,-500.0,0.00013698,2]
[353088138,1739548238730,-500.0,0.00013698,2]
[353088140,1739548238740,-500.0,0.00013698,2]
[353088142,1739548238750,-500.0,0.00013698,2]
[353088144,1739548238761,-500.0,0.00013698,2]
[353088146,1739548238770,-500.0,0.00013698,2]
[353088148,1739548238780,-500.0,0.00013698,2]
[353088150,1739548238790,-500.0,0.00013698,2]
[353088152,1739548238801,-500.0,0.00013698,2]
[353088154,1739548238813,-500.0,0.00013698,2]
[353088156,1739548238822,-500.0,0.00013698,2]
[353088158,1739548238833,-500.0,0.00013698,2]
[353088160,1739548238843,-500.0,0.00013698,2]
[353088162,1739548238853,-500.0,0.00013698,2]
[353088164,1739548238863,-500.0,0.00013698,2]
[353088166,1739548238873,-499.6487,0.00013698,2]
[353088168,1739548238883,-500.0,0.00013698,2]
[353088170,1739548238893,-500.0,0.00013698,2]
[353088196,1739548239142,-531.2224973,0.00013698,2]
[353088198,1739548239152,-500.0,0.00013698,2]
[353088200,1739548239163,-500.0,0.00013698,2]
[353088202,1739548239172,-500.0,0.00013698,2]
[353088204,1739548239182,-500.0,0.00013698,2]
[353088206,1739548239192,-642.57,0.00013698,2]
[353088208,1739548239202,-500.0,0.00013698,2]
[353088210,1739548239212,-500.0,0.00013698,2]
[353088212,1739548239221,-500.0,0.00013698,2]
[353088214,1739548239231,-500.0,0.00013698,2]
[353088216,1739548239241,-554.21,0.00013698,2]
[353088218,1739548239254,-612.38,0.00013698,2]
[353088220,1739548239264,-500.0,0.00013698,2]
[353088222,1739548239273,-500.0,0.00013698,2]
[353088224,1739548239283,-500.0,0.00013698,2]
[353088226,1739548239294,-500.0,0.00013698,2]
[353088228,1739548239304,-500.0,0.00013698,2]
[353088230,1739548239314,-994.12,0.00013698,2]
[353088232,1739548239324,-500.0,0.00013698,2]
[353088234,1739548239335,-500.0,0.00013698,2]
[353088236,1739548239344,-500.0,0.00013698,2]
[353088238,1739548239353,-500.0,0.00013698,2]
[353088240,1739548239363,-500.0,0.00013698,2]
[353088242,1739548239374,-39.70549209,0.00013698,2]
[353088246,1739548239404,-5554.0,0.000133,5]
[353088248,1739548239414,-460.29450791,0.00013698,2]
[353088250,1739548239424,-500.0,0.00013698,2]
[353088252,1739548239434,-1030.56,0.00013698,2]
[353088254,1739548239444,-766.85,0.00013698,2]
[353088256,1739548239454,-500.0,0.00013698,2]
[353088258,1739548239464,-500.0,0.00013698,2]
[353088261,1739548239474,-500.0,0.00013698,2]
[353088263,1739548239484,-500.0,0.00013698,2]
[353088264,1739548239494,-500.0,0.00013698,2]
[353088267,1739548239504,-500.0,0.00013698,2]
[353088269,1739548239515,-558.25,0.00013698,2]
[353088271,1739548239526,-500.0,0.00013698,2]
[353088273,1739548239536,-605.63,0.00013698,2]
[353088275,1739548239547,-500.0,0.00013698,2]
[353088277,1739548239557,-732.45,0.00013698,2]
[353088279,1739548239567,-500.0,0.00013698,2]
[353088281,1739548239577,-500.0,0.00013698,2]
[353088283,1739548239587,-511.36,0.00013698,2]
[353088285,1739548239597,-500.0,0.00013698,2]
[353088288,1739548239607,-500.0,0.00013698,2]
[353088290,1739548239617,-500.19,0.00013698,2]
[353088292,1739548239628,-770.57,0.00013698,2]
[353088294,1739548239638,-500.0,0.00013698,2]
[353088296,1739548239650,-500.0,0.00013698,2]
[353088298,1739548239660,-500.0,0.00013698,2]
[353088300,1739548239670,-500.0,0.00013698,2]
[353088302,1739548239680,-500.0,0.00013698,2]
[353088304,1739548239690,-506.45,0.00013698,2]
[353088306,1739548239699,-500.0,0.00013698,2]
[353088308,1739548239709,-853.05,0.00013698,2]
[353088310,1739548239719,-500.0,0.00013698,2]
[353088312,1739548239729,-500.0,0.00013698,2]
[353088314,1739548239738,-500.0,0.00013698,2]
[353088316,1739548239748,-500.0,0.00013698,2]
[353088318,1739548239758,-526.78,0.00013698,2]
[353088320,1739548239767,-500.0,0.00013698,2]
[353088322,1739548239777,-500.0,0.00013698,2]
[353088324,1739548239786,-500.0,0.00013698,2]
[353088326,1739548239796,-512.18,0.00013698,2]
[353088328,1739548239805,-500.0,0.00013698,2]
[353088330,1739548239815,-572.1,0.00013698,2]
[353088332,1739548239825,-500.0,0.00013698,2]
[353088334,1739548239835,-516.8,0.00013698,2]
[353088336,1739548239845,-852.41,0.00013698,2]
[353088338,1739548239855,-500.0,0.00013698,2]
[353088340,1739548239865,-162.519311,0.00013698,2]
[353088342,1739548239875,-500.0,0.00013698,2]
[353088344,1739548239885,-500.0,0.00013698,2]
[353088346,1739548239895,-500.0,0.00013698,2]
[353088348,1739548239905,-500.0,0.00013698,2]
[353088350,1739548239915,-500.0,0.00013698,2]
[353088352,1739548239925,-500.0,0.00013698,2]
[353088354,1739548239935,-257.17898191,0.00013698,2]
[353088357,1739548239948,-242.82101809,0.00013698,2]
[353088359,1739548239958,-500.0,0.00013698,2]
[353088361,1739548239968,-550.47,0.00013698,2]
[353088363,1739548239977,-226.70898191,0.00013698,2]
[353088365,1739548239988,-400.54101809,0.00013698,2]
[353088367,1739548239997,-382.30193413,0.00013698,2]
[353088369,1739548240009,-930.14806587,0.00013698,2]
[353088371,1739548240020,-500.0,0.00013698,2]
[353088373,1739548240030,-813.49,0.00013698,2]
[353088375,1739548240039,-462.78702802,0.00013698,2]
[353088377,1739548240052,-304.54297198,0.00013698,2]
[353088379,1739548240062,-500.0,0.00013698,2]
[353088381,1739548240072,-500.0,0.00013698,2]
[353088383,1739548240081,-500.0,0.00013698,2]
[353088385,1739548240091,-672.67320422,0.00013698,2]
[353088417,1739548240389,-1086.9148105,0.0001158,2]
[353088421,1739548240425,-756.26433671,0.0001158,2]
[353088423,1739548240435,-5554.0,0.000129,3]
[353088425,1739548240445,-489.99679578,0.00013698,2]
[353088427,1739548240454,-500.0,0.00013698,2]
[353088429,1739548240464,-500.0,0.00013698,2]
[353088431,1739548240473,-610.18,0.00013698,2]
[353088433,1739548240483,-500.0,0.00013698,2]
[353088435,1739548240493,-500.0,0.00013698,2]
[353088437,1739548240503,-1021.4,0.00013698,2]
[353088439,1739548240512,-500.0,0.00013698,2]
[353088441,1739548240522,-500.0,0.00013698,2]
[353088443,1739548240531,-532.71,0.00013698,2]
[353088446,1739548240541,-500.0,0.00013698,2]
[353088447,1739548240551,-500.0,0.00013698,2]
[353088448,1739548240560,-500.0,0.00013698,2]
[353088449,1739548240570,-1017.66,0.00013698,2]
[353088450,1739548240580,-527.38,0.00013698,2]
[353088451,1739548240590,-500.0,0.00013698,2]
[353088452,1739548240601,-706.64,0.00013698,2]
[353088453,1739548240611,-500.0,0.00013698,2]
[353088454,1739548240621,-500.0,0.00013698,2]
[353088455,1739548240630,-500.0,0.00013698,2]
[353088456,1739548240641,-500.0,0.00013698,2]
[353088457,1739548240651,-504.95,0.00013698,2]
[353088459,1739548240661,-500.0,0.00013698,2]
[353088460,1739548240671,-500.0,0.00013698,2]
[353088462,1739548240681,-600.48,0.00013698,2]
[353088464,1739548240690,-810.67,0.00013698,2]
[353088466,1739548240700,-500.0,0.00013698,2]
[353088468,1739548240710,-500.0,0.00013698,2]
[353088470,1739548240719,-500.0,0.00013698,2]
[353088472,1739548240730,-570.88,0.00013698,2]
[353088474,1739548240739,-641.47,0.00013698,2]
[353088476,1739548240749,-500.0,0.00013698,2]
[353088478,1739548240759,-709.16,0.00013698,2]
[353088480,1739548240769,-500.0,0.00013698,2]
[353088482,1739548240779,-500.0,0.00013698,2]
[353088484,1739548240788,-500.0,0.00013698,2]
[353088486,1739548240798,-500.0,0.00013698,2]
[353088488,1739548240808,-589.44,0.00013698,2]
[353088490,1739548240818,-500.0,0.00013698,2]
[353088492,1739548240828,-578.02,0.00013698,2]
[353088494,1739548240837,-500.0,0.00013698,2]
[353088496,1739548240847,-500.0,0.00013698,2]
[353088498,1739548240856,-500.0,0.00013698,2]
[353088500,1739548240866,-500.0,0.00013698,2]
[353088502,1739548240875,-750.94,0.00013698,2]
[353088504,1739548240884,-673.24,0.00013698,2]
[353088506,1739548240893,-837.5,0.00013698,2]
[353088508,1739548240903,-500.0,0.00013698,2]
[353088510,1739548240912,-500.0,0.00013698,2]
[353088512,1739548240922,-500.0,0.00013698,2]
[353088515,1739548240932,-500.0,0.00013698,2]
[353088517,1739548240942,-500.0,0.00013698,2]
[353088519,1739548240951,-500.0,0.00013698,2]
[353088521,1739548240961,-500.0,0.00013698,2]
[353088523,1739548240971,-500.0,0.00013698,2]
[353088525,1739548240981,-520.57,0.00013698,2]
[353088527,1739548240990,-1037.51,0.00013698,2]
[353088529,1739548241000,-500.0,0.00013698,2]
[353088530,1739548241009,-500.0,0.00013698,2]
[353088533,1739548241019,-500.0,0.00013698,2]
[353088535,1739548241030,-788.93,0.00013698,2]
[353088537,1739548241040,-500.0,0.00013698,2]
[353088538,1739548241052,-864.23,0.00013698,2]
[353088540,1739548241062,-617.98,0.00013698,2]
[353088542,1739548241071,-877.74,0.00013698,2]
[353088544,1739548241081,-904.47,0.00013698,2]
[353088546,1739548241090,-513.21,0.00013698,2]
[353088548,1739548241100,-500.0,0.00013698,2]
[353088550,1739548241109,-500.0,0.00013698,2]
[353088552,1739548241119,-500.0,0.00013698,2]
[353088554,1739548241129,-162.519308,0.00013698,2]
[353088556,1739548241139,-500.0,0.00013698,2]
[353088559,1739548241149,-500.0,0.00013698,2]
[353088561,1739548241158,-500.0,0.00013698,2]
[353088563,1739548241168,-944.16,0.00013698,2]
[353088564,1739548241178,-543.12,0.00013698,2]
[353088567,1739548241187,-500.0,0.00013698,2]
[353088569,1739548241197,-1042.08,0.00013698,2]
[353088571,1739548241207,-154.849231,0.00013698,2]
[353088573,1739548241218,-352.50295211,0.00013698,2]
[353088575,1739548241228,-500.0,0.00013698,2]
[353088576,1739548241241,-500.0,0.00013698,2]
[353088579,1739548241252,-500.0,0.00013698,2]
[353088580,1739548241262,-500.0,0.00013698,2]
[353088582,1739548241272,-1310.51,0.00013698,2]
[353088584,1739548241283,-500.0,0.00013698,2]
[353088587,1739548241294,-500.0,0.00013698,2]
[353088589,1739548241304,-673.91,0.00013698,2]
[353088590,1739548241314,-500.0,0.00013698,2]
[353088592,1739548241323,-734.8,0.00013698,2]
[353088594,1739548241333,-546.61,0.00013698,2]
[353088596,1739548241343,-1513.41,0.00013698,2]
[353088598,1739548241352,-500.0,0.00013698,2]
[353088600,1739548241361,-2210.79,0.00013698,2]
[353088602,1739548241371,-500.0,0.00013698,2]
[353088605,1739548241381,-1768.08,0.00013698,2]
[353088607,1739548241391,-1492.61,0.00013698,2]
[353088608,1739548241400,-1151.33,0.00013698,2]
[353088610,1739548241409,-622.24,0.00013698,2]
[353088612,1739548241418,-500.0,0.00013698,2]
[353088615,1739548241429,-500.0,0.00013698,2]
[353088617,1739548241439,-1064.36,0.00013698,2]
[353088619,1739548241448,-162.519308,0.00013698,2]
[353088621,1739548241457,-1796.41,0.00013698,2]
[353088622,1739548241467,-1979.66,0.00013698,2]
[353088625,1739548241476,-500.0,0.00013698,2]
[353088627,1739548241486,-500.0,0.00013698,2]
[353088629,1739548241495,-500.0,0.00013698,2]
[353088631,1739548241505,-500.0,0.00013698,2]
[353088633,1739548241515,-616.44,0.00013698,2]
[353088635,1739548241524,-859.81,0.00013698,2]
[353088636,1739548241534,-988.81,0.00013698,2]
[353088638,1739548241543,-500.0,0.00013698,2]
[353088641,1739548241553,-557.61,0.00013698,2]
[353088642,1739548241562,-1151.77,0.00013698,2]
[353088645,1739548241572,-941.03,0.00013698,2]
[353088647,1739548241582,-154.849232,0.00013698,2]
[353088648,1739548241592,-815.21,0.00013698,2]
[353088651,1739548241601,-851.32,0.00013698,2]
[353088653,1739548241611,-500.0,0.00013698,2]
[353088654,1739548241620,-500.0,0.00013698,2]
[353088656,1739548241629,-1906.05,0.00013698,2]
[353088659,1739548241639,-991.62,0.00013698,2]
[353088661,1739548241649,-1635.06,0.00013698,2]
[353088663,1739548241658,-979.35,0.00013698,2]
[353088665,1739548241667,-2170.9,0.00013698,2]
[353088667,1739548241676,-642.88062634,0.00013698,2]
[353088669,1739548241686,-500.0,0.00013698,2]
[353088671,1739548241695,-1517.59,0.00013698,2]
[353088673,1739548241704,-500.0,0.00013698,2]
[353088675,1739548241713,-500.0,0.00013698,2]
[353088677,1739548241723,-954.96,0.00013698,2]
[353088679,1739548241732,-500.0,0.00013698,2]
[353088681,1739548241742,-4366.6,0.00013698,2]
[353088683,1739548241752,-536.41,0.00013698,2]
[353088685,1739548241762,-999.3,0.00013698,2]
[353088687,1739548241771,-717.74,0.00013698,2]
[353088689,1739548241780,-500.0,0.00013698,2]
[353088691,1739548241790,-1092.58,0.00013698,2]
[353088693,1739548241801,-631.13,0.00013698,2]
[353088695,1739548241811,-500.0,0.00013698,2]
[353088697,1739548241821,-500.0,0.00013698,2]
[353088698,1739548241831,-1072.74,0.00013698,2]
[353088700,1739548241841,-1218.97,0.00013698,2]
[353088703,1739548241851,-500.0,0.00013698,2]
[353088705,1739548241860,-906.86,0.00013698,2]
[353088707,1739548241870,-1431.71,0.00013698,2]
[353088709,1739548241881,-500.0,0.00013698,2]
[353088711,1739548241890,-1500.48,0.00013698,2]
[353088713,1739548241900,-917.61,0.00013698,2]
[353088715,1739548241910,-1343.63,0.00013698,2]
[353088717,1739548241920,-500.0,0.00013698,2]
[353088719,1739548241930,-500.0,0.00013698,2]
[353088721,1739548241940,-759.39,0.00013698,2]
[353088723,1739548241952,-1249.61,0.00013698,2]
[353088725,1739548241962,-415.52,0.00013698,2]
[353088727,1739548241972,-998.24,0.00013698,2]
[353088729,1739548241982,-1533.71,0.00013698,2]
[353088731,1739548241991,-500.0,0.00013698,2]
[353088733,1739548242001,-500.0,0.00013698,2]
[353088735,1739548242010,-1333.06,0.00013698,2]
[353088737,1739548242021,-500.0,0.00013698,2]
[353088739,1739548242030,-500.0,0.00013698,2]
[353088741,1739548242039,-1456.62,0.00013698,2]
[353088743,1739548242051,-500.0,0.00013698,2]
[353088745,1739548242060,-2749.06,0.00013698,2]
[353088747,1739548242070,-500.0,0.00013698,2]
[353088749,1739548242079,-500.0,0.00013698,2]
[353088751,1739548242089,-1132.11,0.00013698,2]
[353088753,1739548242099,-8729.54,0.00013698,2]
[353088755,1739548242108,-500.0,0.00013698,2]
[353088757,1739548242118,-756.38,0.00013698,2]
[353088759,1739548242127,-741.08,0.00013698,2]
[353088761,1739548242137,-1241.63,0.00013698,2]
[353088763,1739548242147,-835.42,0.00013698,2]
[353088766,1739548242159,-1544.84,0.00013698,2]
[353088768,1739548242168,-866.9,0.00013698,2]
[353088769,1739548242178,-500.0,0.00013698,2]
[353088771,1739548242188,-500.0,0.00013698,2]
[353088774,1739548242197,-500.0,0.00013698,2]
[353088776,1739548242207,-500.0,0.00013698,2]
[353088778,1739548242217,-560.92,0.00013698,2]
[353088780,1739548242227,-1579.95,0.00013698,2]
[353088782,1739548242236,-936.28,0.00013698,2]
[353088784,1739548242247,-500.0,0.00013698,2]
[353088786,1739548242259,-1044.67,0.00013698,2]
[353088788,1739548242269,-500.0,0.00013698,2]
[353088790,1739548242279,-2242.19,0.00013698,2]
[353088792,1739548242289,-817.13,0.00013698,2]
[353088794,1739548242301,-2304.98,0.00013698,2]
[353088796,1739548242311,-2473.72,0.00013698,2]
[353088798,1739548242321,-500.0,0.00013698,2]
[353088800,1739548242331,-1622.0,0.00013698,2]
[353088802,1739548242342,-500.0,0.00013698,2]
[353088804,1739548242352,-1596.05,0.00013698,2]
[353088806,1739548242362,-510.82,0.00013698,2]
[353088808,1739548242371,-500.0,0.00013698,2]
[353088810,1739548242381,-1710.8,0.00013698,2]
[353088812,1739548242391,-2143.64,0.00013698,2]
[353088814,1739548242400,-500.0,0.00013698,2]
[353088816,1739548242410,-2601.08,0.00013698,2]
[353088818,1739548242420,-500.0,0.00013698,2]
[353088820,1739548242429,-1492.38,0.00013698,2]
[353088822,1739548242439,-540.27,0.00013698,2]
[353088824,1739548242449,-916.79,0.00013698,2]
[353088826,1739548242459,-500.0,0.00013698,2]
[353088828,1739548242469,-500.0,0.00013698,2]
[353088830,1739548242478,-607.33,0.00013698,2]
[353088832,1739548242488,-1897.27,0.00013698,2]
[353088834,1739548242498,-1891.84,0.00013698,2]
[353088836,1739548242508,-673.18,0.00013698,2]
[353088838,1739548242517,-1009.69,0.00013698,2]
[353088840,1739548242527,-4821.35,0.00013698,2]
[353088842,1739548242537,-532.89,0.00013698,2]
[353088844,1739548242549,-500.0,0.00013698,2]
[353088846,1739548242559,-1485.12,0.00013698,2]
[353088848,1739548242571,-1836.25,0.00013698,2]
[353088850,1739548242581,-500.0,0.00013698,2]
[353088852,1739548242591,-1461.42,0.00013698,2]
[353088854,1739548242601,-934.94,0.00013698,2]
[353088856,1739548242611,-1421.4,0.00013698,2]
[353088858,1739548242620,-1854.8,0.00013698,2]
[353088860,1739548242629,-500.0,0.00013698,2]
[353088862,1739548242639,-500.0,0.00013698,2]
[353088864,1739548242648,-500.0,0.00013698,2]
[353088866,1739548242658,-500.0,0.00013698,2]
[353088867,1739548242667,-500.0,0.00013698,2]
[353088868,1739548242677,-1804.85,0.00013698,2]
[353088869,1739548242687,-1259.2,0.00013698,2]
[353088870,1739548242696,-2334.72,0.00013698,2]
[353088871,1739548242706,-500.0,0.00013698,2]
[353088872,1739548242715,-1385.43,0.00013698,2]
[353088874,1739548242725,-2123.41,0.00013698,2]
[353088875,1739548242735,-443.08084006,0.00013698,2]
[353088877,1739548242746,-500.0,0.00013698,2]
[353088879,1739548242756,-500.0,0.00013698,2]
[353088881,1739548242765,-1395.16,0.00013698,2]
[353088883,1739548242775,-2502.99,0.00013698,2]
[353088885,1739548242785,-2498.19,0.00013698,2]
[353088887,1739548242797,-1526.27,0.00013698,2]
[353088889,1739548242808,-1598.05,0.00013698,2]
[353088892,1739548242818,-500.0,0.00013698,2]
[353088895,1739548242828,-810.72,0.00013698,2]
[353088897,1739548242839,-500.0,0.00013698,2]
[353088900,1739548242849,-500.0,0.00013698,2]
[353088902,1739548242860,-1582.89,0.00013698,2]
[353088904,1739548242870,-4553.2,0.00013698,2]
[353088905,1739548242879,-1757.93,0.00013698,2]
[353088906,1739548242889,-568.74,0.00013698,2]
[353088908,1739548242899,-500.0,0.00013698,2]
[353088909,1739548242909,-1448.18,0.00013698,2]
[353088910,1739548242918,-500.0,0.00013698,2]
[353088911,1739548242929,-500.0,0.00013698,2]
[353088912,1739548242938,-1118.01,0.00013698,2]
[353088913,1739548242947,-500.0,0.00013698,2]
[353088914,1739548242957,-500.0,0.00013698,2]
[353088915,1739548242966,-1885.67,0.00013698,2]
[353088916,1739548242975,-538.82,0.00013698,2]
[353088917,1739548242985,-500.0,0.00013698,2]
[353088918,1739548242995,-500.0,0.00013698,2]
[353088919,1739548243005,-600.97576292,0.00013698,2]
[353088921,1739548243015,-1655.01,0.00013698,2]
[353088923,1739548243026,-500.0,0.00013698,2]
[353088925,1739548243035,-1953.82,0.00013698,2]
[353088927,1739548243048,-500.0,0.00013698,2]
[353088929,1739548243058,-500.0,0.00013698,2]
[353088931,1739548243067,-2850.6,0.00013698,2]
[353088933,1739548243077,-1727.3,0.00013698,2]
[353088935,1739548243086,-805.16,0.00013698,2]
[353088937,1739548243095,-1867.08,0.00013698,2]
[353088939,1739548243105,-704.67,0.00013698,2]
[353088941,1739548243114,-2297.29,0.00013698,2]
[353088943,1739548243124,-500.0,0.00013698,2]
[353088945,1739548243134,-500.0,0.00013698,2]
[353088946,1739548243143,-500.0,0.00013698,2]
[353088947,1739548243153,-500.0,0.00013698,2]
[353088948,1739548243163,-500.0,0.00013698,2]
[353088949,1739548243173,-500.0,0.00013698,2]
[353088950,1739548243183,-1270.98,0.00013698,2]
[353088951,1739548243193,-500.0,0.00013698,2]
[353088952,1739548243204,-500.0,0.00013698,2]
[353088953,1739548243214,-500.0,0.00013698,2]
[353088954,1739548243224,-2437.8,0.00013698,2]
[353088956,1739548243436,-1057.29,0.00013698,2]
[353088957,1739548243448,-528.75,0.00013698,2]
[353088958,1739548243457,-500.0,0.00013698,2]
[353088959,1739548243467,-500.0,0.00013698,2]
[353088960,1739548243477,-500.0,0.00013698,2]
[353088961,1739548243487,-500.0,0.00013698,2]
[353088963,1739548243496,-588.67,0.00013698,2]
[353088965,1739548243506,-500.0,0.00013698,2]
[353088967,1739548243516,-663.06,0.00013698,2]
[353088968,1739548243526,-1920.38,0.00013698,2]
[353088969,1739548243536,-1885.05,0.00013698,2]
[353088970,1739548243546,-1624.39,0.00013698,2]
[353088971,1739548243556,-2367.4,0.00013698,2]
[353088972,1739548243566,-500.0,0.00013698,2]
[353088973,1739548243575,-827.32,0.00013698,2]
[353088974,1739548243585,-554.75,0.00013698,2]
[353088975,1739548243595,-500.0,0.00013698,2]
[353088976,1739548243605,-200.0,0.00013699,2]
[353088977,1739548243615,-168.27,0.00013699,2]
[353088978,1739548243625,-600.0,0.000137,5]
[353088979,1739548243635,-1000.0,0.00013731,2]
[353088980,1739548243645,-3039.038,0.00013732,2]
[353088981,1739548243655,-183.76,0.00013732,2]
[353088982,1739548243665,-415.99926698,0.00013767,2]
[353088983,1739548243675,-514.644474,0.0001378,2]
[353088984,1739548243685,-735.533849,0.0001378,2]
[353088985,1739548243694,-500.0,0.0001378,2]
[353088986,1739548243704,-500.0,0.0001378,2]
[353088987,1739548243713,-500.0,0.0001378,2]
[353088988,1739548243723,-500.0,0.0001378,2]
[353088989,1739548243733,-500.0,0.0001378,2]
[353088990,1739548243744,-500.0,0.0001378,2]